fUSD/lending_fUSD_20251014
["ID","MTS","AMOUNT","RATE_DAILY","PERIOD"]
[391248644,1760429181882,888.0,0.00027397,120]
[391248662,1760429431817,-150.0,0.00013,2]
[391248663,1760429431827,-150.0,0.00013488,2]
[391248664,1760429431837,-150.0,0.00013488,2]
[391248665,1760429431847,-150.0,0.00013488,2]
[391248666,1760429431857,-1079.193366,0.00014165,2]
[391248667,1760429431867,-150.0,0.00014237,2]
[391248668,1760429431877,-222.0,0.000143,2]
[391248669,1760429431886,-562.97096077,0.000143,2]
[391248670,1760429431896,-399.0,0.00014498,2]
[391248671,1760429431907,-250.0,0.00014498,2]
[391248672,1760429431917,-301.80487156,0.00014574,2]
[391248673,1760429431930,-153.19512844,0.00014574,2]
[391248674,1760429431939,-262.97083013,0.00014575,2]
[391248675,1760429431952,-397.63916987,0.00014575,2]
[391248676,1760429431961,-250.0,0.0001458,7]
[391248677,1760429431972,-357.14893068,0.00014689,2]
[391248678,1760429431995,-83.85106932,0.00014689,2]
[391248679,1760429432005,-1723.0,0.00014719,2]
[391248680,1760429432015,-1200.0,0.00014746,2]
[391248681,1760429432024,-602.0,0.00014747,2]
[391248682,1760429432034,-300.0,0.00014747,2]
[391248683,1760429432043,-1505.0,0.00014748,2]
[391248684,1760429432053,-1854.0,0.00014777,2]
[391248685,1760429432062,-495.0,0.00014777,2]
[391248686,1760429432072,-272.0,0.00014806,2]
[391248687,1760429432082,-452.0,0.00014836,2]
[391248688,1760429432092,-1993.0,0.0001485,2]
[391248689,1760429432102,-1092.02376,0.0001485,2]
[391248690,1760429432111,-635.0,0.00014879,2]
[391248691,1760429432122,-1111.0,0.00014899,2]
[391248692,1760429432131,-150.0,0.00014899,2]
[391248693,1760429432141,-2000.0,0.000149,2]
[391248694,1760429432152,-164.02647209,0.000149,2]
[391248695,1760429432161,-1111.0,0.000149,2]
[391248696,1760429432171,-314.15118244,0.000149,2]
[391248697,1760429432181,-1541.26843411,0.000149,2]
[391248699,1760429432190,-279.08,0.000149,2]
[391248701,1760429432200,-1205.71908625,0.000149,2]
[391248702,1760429432210,-175.14900067,0.000149,2]
[391248703,1760429432219,-246.70033531,0.000149,2]
[391248704,1760429432228,-1047.02645196,0.000149,2]
[391248705,1760429432238,-278.0,0.00014909,2]
[391248706,1760429432248,-1399.0,0.00014928,2]
[391248707,1760429432257,-1394.0,0.00014939,2]
[391248708,1760429432267,-1348.0,0.00014958,2]
[391248709,1760429432276,-500.0,0.00014973,2]
[391248710,1760429432285,-500.0,0.00014973,2]
[391248711,1760429432295,-500.0,0.00014973,2]
[391248712,1760429432304,-500.0,0.00014973,2]
[391248714,1760429432314,-2001.51,0.0001498,2]
[391248716,1760429432323,-1048.6441031,0.00014981,2]
[391248718,1760429432332,-46798.0185772,0.00014981,2]
[391248719,1760429432342,-370.7118566,0.00014981,2]
[391248721,1760429432351,-1924.5825498,0.00014981,2]
[391248723,1760429432361,-167.7931487,0.00014981,2]
[391248725,1760429432371,-970.1926338,0.00014981,2]
[391248727,1760429432380,-12988.79153948,0.00014981,2]
[391248729,1760429432392,-25729.53135172,0.00014981,2]
[391248730,1760429432401,-150.0,0.00014986,2]
[391248731,1760429432411,-150.0,0.00014986,2]
[391248732,1760429432420,-1161.0,0.00014987,2]
[391248733,1760429432429,-200.0,0.00014991,2]
[391248734,1760429432439,-151.87250626,0.00014999,2]
[391248735,1760429432449,-10003.18611935,0.00015,2]
[391248736,1760429432461,-297.52122527,0.00015,2]
[391248737,1760429432473,-250.49674255,0.00015,2]
[391248739,1760429437710,-8931.40870626,0.00015,2]
[391248740,1760429437722,-304.76366093,0.00015,2]
[391248741,1760429437733,-273.20310905,0.00015,2]
[391248762,1760429437858,-1295.22364364,0.00015,2]
[391248764,1760429437870,-8628.79751361,0.00015,2]
[391248766,1760429437880,-291.53029014,0.00015,2]
[391248768,1760429437891,-3082.71500494,0.00015,2]
[391248771,1760429437947,-945.4218346,0.00015,2]
[391248772,1760429437959,-2125.96167163,0.00015,2]
[391248774,1760429437970,-2270.61767705,0.00015,2]
[391248776,1760429437981,-2235.45880842,0.00015,2]
[391248803,1760429439965,-473.93335833,0.00014662,2]
[391248804,1760429439976,-1489.06664167,0.00014662,2]
[391248805,1760429439986,-2667.13325835,0.00015,2]
[391248806,1760429440028,-671.75664473,0.0001496,2]
[391248807,1760429440037,-41676.69739953,0.00015,2]
[391248808,1760429440048,-2403.95955695,0.00015,2]
[391248809,1760429440060,-285.35032063,0.00015,2]
[391248810,1760429440071,-1635.59993922,0.00015,2]
[391248811,1760429440082,-3810.74823059,0.00015,2]
[391248814,1760429440233,-913.14009072,0.00015,2]
[391248815,1760429440247,-3587.30455759,0.00015,2]
[391248816,1760429440261,-25949.57475895,0.00015,2]
[391248817,1760429440273,-491.42396994,0.00015,2]
[391248818,1760429440284,-839.15,0.00015,2]
[391248819,1760429440352,-1133.0,0.00014692,2]
[391248820,1760429440362,-3054.16515031,0.00015,2]
[391248858,1760429443018,-1194.03000001,0.00014721,2]
[391248859,1760429443031,-544.05,0.00014721,2]
[391248860,1760429443290,-17.91999999,0.00014721,2]
[391248861,1760429443299,-210.14053164,0.0001475,2]
[391248890,1760429445848,-1663.85946836,0.0001475,2]
[391248892,1760429445859,-209251.5623337,0.00015,2]
[391248894,1760429445870,-466.81370507,0.00015,2]
[391248896,1760429445883,-1117.6,0.00015,2]
[391248898,1760429446158,-17588.22261244,0.00015,2]
[391248899,1760429446173,-2217.45,0.00015,2]
[391249042,1760429739671,169.73,7.122e-05,2]
[391249079,1760430523141,200.0,0.00027397,120]
[391249089,1760430631806,-166.66,0.00013699,2]
[391249090,1760430631817,-199.47195705,0.00013844,2]
[391249095,1760430631867,-180.70804295,0.00013844,2]
[391249097,1760430631877,-317.04195705,0.00013888,2]
[391249099,1760430631889,-226.34804295,0.00013888,2]
[391249101,1760430631899,-74.23203866,0.00013926,2]
[391249103,1760430631934,-92.42796134,0.00013926,2]
[391249104,1760430631944,-200.0,0.00013927,2]
[391249105,1760430631953,-421.81819664,0.00014,3]
[391249106,1760430631965,-158.49474432,0.00014,3]
[391249107,1760430631976,-647.81,0.00014034,2]
[391249108,1760430631985,-166.66,0.00014154,2]
[391249109,1760430631995,-1916.25,0.00014233,2]
[391249110,1760430632005,-1526.91,0.00014244,2]
[391249111,1760430632014,-666.0,0.00014273,3]
[391249112,1760430632028,-153.57,0.00014357,2]
[391249113,1760430632038,-166.66,0.00014382,2]
[391249114,1760430632047,-166.66,0.00014609,2]
[391249115,1760430632058,-200.0,0.000147,5]
[391249116,1760430632069,-300.0,0.00014755,2]
[391249117,1760430632078,-1000.0,0.00014756,2]
[391249118,1760430632088,-1000.0,0.00014756,2]
[391249119,1760430632099,-301.0,0.00014783,2]
[391249120,1760430632109,-500.0,0.000148,5]
[391249121,1760430632119,-166.66,0.00014837,2]
[391249122,1760430632128,-398.971,0.00014899,2]
[391249123,1760430632137,-222.03030177,0.000149,2]
[391249124,1760430632147,-2805.79665894,0.000149,2]
[391249125,1760430632156,-160.67326616,0.000149,2]
[391249126,1760430632166,-800.0,0.000149,5]
[391249127,1760430632175,-1176.90116597,0.000149,2]
[391249129,1760430632185,-1487.72550503,0.000149,2]
[391249131,1760430632194,-181.57466091,0.000149,2]
[391249133,1760430632203,-150.06,0.00014945,2]
[391249135,1760430632213,-500.0,0.00014973,2]
[391249137,1760430632222,-1149.3475523,0.00014979,2]
[391249139,1760430632233,-151.23904885,0.00014985,2]
[391249141,1760430632242,-206.83,0.0001499,2]
[391249143,1760430632254,-206.83,0.0001499,2]
[391249144,1760430632263,-206.83,0.0001499,2]
[391249145,1760430632273,-206.83,0.0001499,2]
[391249146,1760430632282,-206.83,0.0001499,2]
[391249147,1760430632293,-1601.208,0.00014991,2]
[391249148,1760430632302,-265.28173875,0.00014991,2]
[391249149,1760430632311,-4954.2715418,0.00014993,2]
[391249150,1760430632321,-232.8703225,0.00014993,2]
[391249152,1760430632331,-35098.5139329,0.00014993,2]
[391249154,1760430632340,-786.4830774,0.00014993,2]
[391249156,1760430632350,-1443.4369124,0.00014993,2]
[391249157,1760430632359,-278.0338924,0.00014993,2]
[391249158,1760430632368,-29766.3866437,0.00014993,2]
[391249159,1760430632379,-500.0,0.00014999,2]
[391249160,1760430632388,-500.0,0.00014999,2]
[391249161,1760430632397,-525.0,0.00014999,2]
[391249162,1760430632407,-500.0,0.00014999,2]
[391249163,1760430632416,-260212.40934763,0.00015,2]
[391249164,1760430632426,-43697.18584977,0.00015,2]
[391249165,1760430632441,-59579.55355156,0.00015,2]
[391249166,1760430632452,-73221.3030958,0.00015,2]
[391249167,1760430632463,-44586.82926521,0.00015,2]
[391249168,1760430632904,-767.51180061,0.00015,2]
[391249169,1760430632915,-563.90783571,0.00015,2]
[391249170,1760430632926,-742.81520405,0.00015,2]
[391249171,1760430632939,-3126.77846771,0.00015,2]
[391249172,1760430632959,-811.0468243,0.00015,2]
[391249173,1760430632970,-15141.556956,0.00015,2]
[391249174,1760430637909,-1120.0,0.00015,2]
[391249179,1760430639912,-325.70091321,0.00015,2]
[391249180,1760430639923,-431.38773254,0.00015,2]
[391249181,1760430639972,-316.03649389,0.00015,2]
[391249182,1760430639984,-293.16730001,0.00015,2]
[391249183,1760430640089,-521.4885805,0.00015,2]
[391249184,1760430640101,-2112.40000003,0.00015,2]
[391249185,1760430640111,-4149.09999998,0.00015,2]
[391249190,1760430642981,-262.81879999,0.00015,2]
[391249191,1760430643038,-600185.32326533,0.00015,2]
[391249192,1760430643050,-448.88,0.00015,2]
[391249197,1760430645943,-4932.73005647,0.000149,2]
[391249198,1760430646117,-4488.92323471,0.000149,2]
[391249199,1760430646126,-2895.47079439,0.00015,2]
[391249233,1760430706928,-153.28346837,0.000147,2]
[391249248,1760431067359,109822.16838246,0.00027397,120]
[391249253,1760431173469,38053.58,0.00027397,120]
[391249259,1760431352032,8385.3497245,0.00027397,120]
[391249260,1760431414781,151.0,0.00027397,120]
[391249261,1760431464324,151.0,0.00027397,120]
[391249263,1760431540267,1481.82576319,0.00027397,120]
[391249276,1760431832059,-209.45630732,0.00013538,2]
[391249277,1760431832071,-296.87,0.00013699,2]
[391249278,1760431832082,-250.0,0.00014048,2]
[391249279,1760431832092,-200.0,0.00014067,2]
[391249280,1760431832103,-300.0,0.00014135,2]
[391249281,1760431832113,-1200.0,0.00014135,2]
[391249282,1760431832122,-1341.02826846,0.00014136,2]
[391249283,1760431832141,-7027.94173154,0.00014136,2]
[391249284,1760431832151,-200.0,0.00014581,2]
[391249285,1760431832160,-500.0,0.00014582,2]
[391249286,1760431832170,-200.0,0.00014582,2]
[391249287,1760431832181,-200.0,0.00014582,2]
[391249288,1760431832189,-1127.68353163,0.000147,2]
[391249289,1760431832198,-3636.42,0.0001482,2]
[391249290,1760431832210,-2541.36923343,0.000149,2]
[391249291,1760431832220,-8479.48796199,0.000149,2]
[391249292,1760431832229,-199.82727162,0.000149,2]
[391249293,1760431832238,-29266.69307554,0.00014971,2]
[391249294,1760431832249,-500.0,0.00014973,2]
[391249295,1760431832258,-2621.1580483,0.00014998,2]
[391249296,1760431832267,-150.0,0.00014998,2]
[391249297,1760431832276,-500.0,0.00014999,2]
[391249298,1760431832286,-500.0,0.00014999,2]
[391249299,1760431832295,-452.54643812,0.00014999,2]
[391249300,1760431832304,-299.89198212,0.00014999,2]
[391249302,1760431832314,-500.0,0.00014999,2]
[391249304,1760431832323,-167.7931488,0.00014999,2]
[391249305,1760431832331,-447.62045917,0.00014999,2]
[391249306,1760431832340,-503.53652257,0.00014999,2]
[391249307,1760431832349,-3715.7036564,0.00014999,2]
[391249308,1760431832360,-500.0,0.00014999,2]
[391249309,1760431832371,-500.0,0.00014999,2]
[391249310,1760431832380,-26498.5381915,0.00014999,2]
[391249311,1760431832389,-223.26,0.00014999,2]
[391249312,1760431832399,-862.0106642,0.00014999,2]
[391249313,1760431832408,-500.0,0.00014999,2]
[391249314,1760431832417,-500.0,0.00014999,2]
[391249316,1760431832426,-500.0,0.00014999,2]
[391249317,1760431832436,-500.0,0.00014999,2]
[391249318,1760431832447,-500.0,0.00014999,2]
[391249319,1760431832456,-405.74429449,0.00014999,2]
[391249320,1760431832466,-500.0,0.00014999,2]
[391249321,1760431832475,-500.0,0.00014999,2]
[391249322,1760431832485,-500.0,0.00014999,2]
[391249323,1760431832496,-500.0,0.00014999,2]
[391249324,1760431832505,-500.0,0.00014999,2]
[391249325,1760431832515,-313.81339947,0.00014999,2]
[391249326,1760431832524,-589.862308,0.00014999,2]
[391249327,1760431832794,-500.0,0.00014999,2]
[391249328,1760431832828,-1082.5776843,0.00014999,2]
[391249329,1760431832836,-500.0,0.00014999,2]
[391249330,1760431832844,-500.0,0.00014999,2]
[391249331,1760431832852,-500.0,0.00014999,2]
[391249332,1760431832861,-565.12749754,0.00014999,2]
[391249333,1760431832870,-500.0,0.00014999,2]
[391249334,1760431832879,-500.0,0.00014999,2]
[391249335,1760431832887,-500.0,0.00014999,2]
[391249336,1760431832898,-500.0,0.00014999,2]
[391249337,1760431832908,-208.5254193,0.00014999,2]
[391249338,1760431832917,-3269.89,0.00015,2]
[391249339,1760431832926,-84907.83936984,0.00015,2]
[391249340,1760431832938,-11397.19258559,0.00015,2]
[391249341,1760431832956,-443.89,0.00015,2]
[391249342,1760431832969,-1090.0,0.00015,2]
[391249343,1760431832992,-1697.27425521,0.00015,2]
[391249352,1760431838297,-151.0,0.00014996,2]
[391249353,1760431838307,-151.0,0.00014997,2]
[391249354,1760431838316,-16272.8515288,0.00015,2]
[391249355,1760431838328,-5161.25006226,0.00015,2]
[391249356,1760431838376,-361.01893073,0.00015,2]
[391249357,1760431838387,-3372.36255736,0.00015,2]
[391249358,1760431838399,-17771.95039085,0.00015,2]
[391249359,1760431839958,-9850.0,0.00015,2]
[391249360,1760431839969,-455.54,0.00015,2]
[391249361,1760431840012,-3321.47916256,0.00015,2]
[391249376,1760431840468,-4072.36108811,0.00015,2]
[391249379,1760431840483,-8817.05014404,0.00015,2]
[391249381,1760431840495,-8947.21879473,0.00015,2]
[391249383,1760431840507,-8943.78386462,0.00015,2]
[391249385,1760431840517,-9077.54866152,0.00015,2]
[391249386,1760431840529,-8943.84023489,0.00015,2]
[391249387,1760431840540,-498.19424838,0.00015,2]
[391249394,1760431843065,-66657.64910273,0.00015,2]
[391249395,1760431843076,-25186.3396482,0.00015,2]
[391249396,1760431843088,-739.09014,0.00015,2]
[391249397,1760431843122,-11234.99806,0.00015,2]
[391249398,1760431843333,-328.23728604,0.00015,2]
[391249404,1760431846178,-5177.71860899,0.00015,2]
[391249405,1760431846191,-22452.0,0.00015,2]
[391249406,1760431846203,-2810.01,0.00015,2]
[391249407,1760431846216,-19819.10049037,0.00015,2]
[391249408,1760431846307,-270.81329954,0.00015,2]
[391249409,1760431846397,-6607.6895439,0.00015,2]
[391249482,1760432237822,604.0,0.00027397,120]
[391249483,1760432365234,214.89348198,0.000273,120]
[391249485,1760432553891,509.58,0.00027397,120]
[391249487,1760432697291,610.21,7.043e-05,2]
[391249488,1760432697486,610.21,7.414e-05,2]
[391249489,1760432697681,610.21,7.784e-05,2]
[391249490,1760432698074,610.21,8.155e-05,2]
[391249491,1760432698294,610.21,8.526e-05,2]
[391249492,1760432698533,610.21,8.897e-05,2]
[391249493,1760432698787,610.21,9.267e-05,2]
[391249494,1760432698989,610.21,9.638e-05,2]
[391249495,1760432699187,610.21,0.00010009,2]
[391249496,1760432699378,610.21,0.00010379,2]
[391249497,1760432699622,610.21,0.0001075,2]
[391249498,1760432699825,610.21,0.00011121,2]
[391249499,1760432700015,610.21,0.00011491,2]
[391249500,1760432700202,610.21,0.00011862,2]
[391249501,1760432700404,610.21,0.00012233,2]
[391249512,1760432701065,610.21,0.00012603,2]
[391249567,1760432760871,-610.21,0.00012974,2]
[391249568,1760432760907,-610.21,0.00013345,2]
[391249569,1760432760932,-610.21,0.00013715,2]
[391249570,1760432760955,-201.02373801,0.00013986,2]
[391249571,1760432760979,-610.21,0.00014086,2]
[391249572,1760432761002,-666.0,0.00014095,3]
[391249573,1760432761025,-171.55,0.00014136,2]
[391249574,1760432761594,-150.0,0.00014141,2]
[391249575,1760432761616,-300.0,0.00014154,2]
[391249576,1760432761642,-27639.92,0.00014166,2]
[391249577,1760432771760,-3915.96906551,0.00014699,2]
[391249578,1760432771780,-250.0,0.00014831,7]
[391249579,1760432771802,-500.0,0.0001488,2]
[391249580,1760432771823,-200.0,0.0001488,2]
[391249581,1760432771844,-963.4388,0.000149,2]
[391249582,1760432771865,-1099.79467118,0.000149,2]
[391249583,1760432771887,-8502.4637253,0.000149,2]
[391249594,1760432802934,-3000.0,0.00015,9]
[391249603,1760432839634,-10000.0,0.00017808,13]
[391249604,1760432839660,-10000.0,0.00017808,13]
[391249605,1760432839681,-10000.0,0.00017808,13]
[391249606,1760432839705,-10000.0,0.00018998,13]
[391249607,1760432839727,-7003.0,0.00018999,13]
[391249629,1760432945582,563.8646966,0.00027397,120]
[391249630,1760432997237,-2980.0,0.00017808,13]
[391249638,1760433032164,-323.9,0.00014171,2]
[391249639,1760433032174,-348.24276144,0.00014249,2]
[391249640,1760433032183,-277.35679052,0.00014249,2]
[391249641,1760433032192,-300.0,0.00014575,2]
[391249642,1760433032201,-783.66430269,0.00014699,2]
[391249651,1760433038222,-3132.30476282,0.00014699,2]
[391249652,1760433038236,-1968.54192621,0.000149,2]
[391249653,1760433038246,-6119.08731097,0.000149,2]
[391249654,1760433038275,-462.72903733,0.000149,2]
[391249655,1760433038285,-305.8623,0.000149,2]
[391249656,1760433038295,-1000.0,0.000149,2]
[391249657,1760433038304,-200.0,0.000149,2]
[391249658,1760433038314,-2500.0,0.000149,2]
[391249659,1760433038323,-963.4388,0.000149,2]
[391249660,1760433038334,-1000.0,0.000149,2]
[391249661,1760433038344,-171.55,0.00014921,2]
[391249662,1760433038354,-500.0,0.00014973,2]
[391249663,1760433038363,-500.0,0.00014973,2]
[391249664,1760433038373,-500.0,0.00014973,2]
[391249666,1760433038382,-180.0,0.00014973,2]
[391249667,1760433038392,-156.0653844,0.00014973,2]
[391249668,1760433038401,-160.51268973,0.00014973,2]
[391249669,1760433038411,-500.0,0.00014973,2]
[391249670,1760433038421,-500.0,0.00014973,2]
[391249671,1760433038431,-500.0,0.00014973,2]
[391249673,1760433038441,-500.0,0.00014991,2]
[391249675,1760433038454,-521.60690922,0.00014991,2]
[391249676,1760433038463,-500.0,0.00014991,2]
[391249677,1760433038473,-500.0,0.00014991,2]
[391249678,1760433038483,-500.0,0.00014991,2]
[391249679,1760433038492,-250.0,0.00014991,2]
[391249680,1760433038502,-500.0,0.00014991,2]
[391249681,1760433038511,-721.12765535,0.00014991,2]
[391249682,1760433038521,-250.0,0.00014991,2]
[391249683,1760433038530,-500.0,0.00014991,2]
[391249684,1760433038540,-500.0,0.00014991,2]
[391249686,1760433038549,-250.0,0.00014991,2]
[391249688,1760433038558,-250.0,0.00014991,2]
[391249690,1760433038568,-500.0,0.00014991,2]
[391249692,1760433038577,-250.0,0.00014991,2]
[391249694,1760433038587,-567.24646943,0.00014991,2]
[391249696,1760433038597,-250.0,0.00014991,2]
[391249698,1760433038607,-151.0,0.00014991,2]
[391249699,1760433038616,-250.0,0.00014991,2]
[391249701,1760433038629,-151.0,0.00014991,2]
[391249703,1760433038641,-250.0,0.00014991,2]
[391249705,1760433038651,-151.0,0.00014991,2]
[391249706,1760433038660,-250.0,0.00014991,2]
[391249707,1760433038669,-151.0,0.00014991,2]
[391249708,1760433038680,-250.0,0.00014991,2]
[391249709,1760433038692,-151.0,0.00014991,2]
[391249710,1760433038702,-250.0,0.00014991,2]
[391249711,1760433038712,-151.0,0.00014991,2]
[391249712,1760433038722,-151.0,0.00014991,2]
[391249713,1760433038732,-151.0,0.00014991,2]
[391249714,1760433038741,-151.0,0.00014991,2]
[391249715,1760433038751,-151.0,0.00014991,2]
[391249716,1760433038760,-151.0,0.00014991,2]
[391249717,1760433038772,-151.0,0.00014991,2]
[391249718,1760433038781,-151.0,0.00014991,2]
[391249719,1760433038791,-151.0,0.00014991,2]
[391249720,1760433038800,-151.0,0.00014991,2]
[391249721,1760433038809,-151.0,0.00014991,2]
[391249723,1760433038819,-151.0,0.00014991,2]
[391249725,1760433038829,-151.0,0.00014991,2]
[391249727,1760433038838,-151.0,0.00014991,2]
[391249729,1760433038850,-151.0,0.00014991,2]
[391249731,1760433038860,-151.0,0.00014991,2]
[391249733,1760433038869,-151.0,0.00014991,2]
[391249735,1760433038879,-151.0,0.00014991,2]
[391249737,1760433038888,-151.0,0.00014991,2]
[391249739,1760433038897,-151.0,0.00014991,2]
[391249741,1760433038907,-151.0,0.00014991,2]
[391249743,1760433038916,-151.0,0.00014991,2]
[391249745,1760433038925,-151.0,0.00014991,2]
[391249747,1760433038935,-151.0,0.00014991,2]
[391249749,1760433038944,-151.0,0.00014991,2]
[391249751,1760433038953,-151.0,0.00014991,2]
[391249753,1760433038964,-200.0,0.00014991,2]
[391249755,1760433038973,-250.0,0.00014991,2]
[391249757,1760433038983,-250.0,0.00014991,2]
[391249759,1760433038993,-250.0,0.00014991,2]
[391249761,1760433039003,-250.0,0.00014991,2]
[391249763,1760433039012,-250.0,0.00014991,2]
[391249765,1760433039023,-250.0,0.00014991,2]
[391249767,1760433039032,-322.6107,0.00014991,2]
[391249769,1760433039045,-297.68,0.00014991,2]
[391249771,1760433039055,-151.0,0.00014997,2]
[391249773,1760433039065,-1000.0,0.00014999,2]
[391249775,1760433039075,-500.0,0.00014999,2]
[391249777,1760433039086,-500.0,0.00014999,2]
[391249780,1760433039099,-154.345197,0.00014999,2]
[391249782,1760433039109,-1001.8032,0.00014999,2]
[391249784,1760433039119,-327.95929416,0.00014999,2]
[391249786,1760433039129,-256.59846294,0.00014999,2]
[391249788,1760433039139,-337.12421797,0.00014999,2]
[391249790,1760433039150,-500.0,0.00014999,2]
[391249792,1760433039160,-500.0,0.00014999,2]
[391249794,1760433039170,-324.91119301,0.00014999,2]
[391249796,1760433039180,-500.0,0.00014999,2]
[391249798,1760433039190,-647.29006291,0.00014999,2]
[391249800,1760433039200,-293436.90049224,0.00015,2]
[391249934,1760433040455,-306.069,0.00015,2]
[391249937,1760433040467,-577.20420484,0.00015,2]
[391249939,1760433040483,-38513.56822089,0.00015,2]
[391249941,1760433040494,-20134.28032468,0.00015,2]
[391249944,1760433040506,-45058.0900164,0.00015,2]
[391249948,1760433040537,-10044.70954478,0.00015,2]
[391249950,1760433040547,-21466.60268364,0.00015,2]
[391249952,1760433040557,-15557.8234242,0.00015,2]
[391249954,1760433040567,-9645.7162967,0.00015,2]
[391249956,1760433040577,-500.0,0.00015,2]
[391249958,1760433040586,-22660.681386,0.00015,2]
[391249960,1760433040597,-500.0,0.00015,2]
[391249962,1760433040606,-500.0,0.00015,2]
[391249965,1760433040615,-500.0,0.00015,2]
[391249967,1760433040625,-150.0,0.00015,2]
[391249969,1760433040634,-150.0,0.00015,2]
[391249971,1760433040644,-150.0,0.00015,2]
[391249973,1760433040652,-500.0,0.00015,2]
[391249975,1760433040662,-150.0,0.00015,2]
[391249994,1760433040838,-150.0,0.00015,2]
[391249997,1760433040855,-150.0,0.00015,2]
[391249999,1760433040865,-150.0,0.00015,2]
[391250001,1760433040875,-500.0,0.00015,2]
[391250003,1760433040884,-688.4562854,0.00015,2]
[391250005,1760433040893,-151.0,0.00015,2]
[391250007,1760433040902,-151.0,0.00015,2]
[391250009,1760433040912,-151.0,0.00015,2]
[391250011,1760433040921,-151.0,0.00015,2]
[391250013,1760433040930,-151.0,0.00015,2]
[391250015,1760433040939,-151.0,0.00015,2]
[391250017,1760433040948,-151.0,0.00015,2]
[391250019,1760433040957,-151.0,0.00015,2]
[391250021,1760433040967,-151.0,0.00015,2]
[391250023,1760433040976,-151.0,0.00015,2]
[391250025,1760433040985,-151.0,0.00015,2]
[391250027,1760433040994,-151.0,0.00015,2]
[391250029,1760433041004,-151.0,0.00015,2]
[391250031,1760433041013,-151.0,0.00015,2]
[391250033,1760433041023,-150.0,0.00015,2]
[391250035,1760433041032,-151.0,0.00015,2]
[391250037,1760433041041,-151.0,0.00015,2]
[391250039,1760433041050,-151.0,0.00015,2]
[391250041,1760433041059,-151.0,0.00015,2]
[391250044,1760433041069,-150.0,0.00015,2]
[391250046,1760433041078,-151.0,0.00015,2]
[391250047,1760433041088,-151.0,0.00015,2]
[391250050,1760433041101,-151.0,0.00015,2]
[391250051,1760433041110,-151.0,0.00015,2]
[391250054,1760433041122,-151.0,0.00015,2]
[391250056,1760433041131,-151.0,0.00015,2]
[391250058,1760433041140,-151.0,0.00015,2]
[391250060,1760433041149,-151.0,0.00015,2]
[391250062,1760433041158,-1189.0,0.00015,2]
[391250064,1760433041167,-151.0,0.00015,2]
[391250066,1760433041176,-151.0,0.00015,2]
[391250067,1760433041185,-151.0,0.00015,2]
[391250069,1760433041194,-151.0,0.00015,2]
[391250071,1760433041203,-151.0,0.00015,2]
[391250073,1760433041212,-151.0,0.00015,2]
[391250075,1760433041222,-151.0,0.00015,2]
[391250077,1760433041232,-151.0,0.00015,2]
[391250080,1760433041242,-216.65840854,0.00015,2]
[391250082,1760433041251,-151.0,0.00015,2]
[391250084,1760433041260,-151.0,0.00015,2]
[391250085,1760433041269,-151.0,0.00015,2]
[391250087,1760433041279,-151.0,0.00015,2]
[391250089,1760433041288,-151.0,0.00015,2]
[391250092,1760433041298,-1603.643,0.00015,2]